fUST/lending_fUST_20241227
["ID","MTS","AMOUNT","RATE_DAILY","PERIOD"]
[346726443,1735248648986,-500.0,0.00017041,2]
[346726444,1735248648995,-494.91992761,0.00017041,2]
[346726445,1735248649004,-500.0,0.00017041,2]
[346726446,1735248649013,-500.0,0.00017041,2]
[346726447,1735248649023,-500.0,0.00017041,2]
[346726448,1735248649032,-500.0,0.00017041,2]
[346726449,1735248649041,-500.0,0.00017041,2]
[346726450,1735248649051,-500.0,0.00017041,2]
[346726451,1735248649061,-11149.6,0.00017041,2]
[346726452,1735248649071,-261.5591029,0.0001706,2]
[346726453,1735248649080,-2711.32066189,0.00017133,2]
[346726454,1735248649090,-544.10194277,0.00017133,2]
[346726455,1735248649100,-7608.77,0.00017207,2]
[346726456,1735248649109,-500.0,0.00017211,2]
[346726457,1735248649119,-500.0,0.00017211,2]
[346726458,1735248649129,-500.0,0.00017212,2]
[346726459,1735248649139,-500.0,0.00017212,2]
[346726460,1735248649149,-2783.85,0.00017212,2]
[346726461,1735248649158,-500.0,0.00017212,2]
[346726462,1735248649168,-500.0,0.00017213,2]
[346726463,1735248649177,-500.0,0.00017213,2]
[346726464,1735248649186,-500.0,0.00017213,2]
[346726465,1735248649196,-500.0,0.00017213,2]
[346726466,1735248649205,-11993.3,0.00017213,2]
[346726467,1735248649215,-500.0,0.00017213,2]
[346726468,1735248649224,-5020.53,0.00017213,2]
[346726469,1735248649233,-500.0,0.00017213,2]
[346726470,1735248649242,-500.0,0.00017213,2]
[346726471,1735248649252,-2064.39,0.00017213,2]
[346726472,1735248649261,-500.0,0.00017214,2]
[346726473,1735248649271,-736.6,0.00017214,2]
[346726474,1735248649280,-500.0,0.00017214,2]
[346726475,1735248649289,-500.0,0.00017214,2]
[346726476,1735248649299,-500.0,0.00017214,2]
[346726477,1735248649309,-500.0,0.00017214,2]
[346726478,1735248649318,-500.0,0.00017214,2]
[346726479,1735248649328,-938.25,0.00017214,2]
[346726480,1735248649337,-500.0,0.00017214,2]
[346726481,1735248649347,-500.0,0.00017214,2]
[346726482,1735248649357,-168.0,0.00017214,2]
[346726483,1735248649366,-978.77,0.00017214,2]
[346726484,1735248649376,-500.0,0.00017214,2]
[346726485,1735248649386,-1241.49,0.00017214,2]
[346726486,1735248649396,-507.11,0.00017214,2]
[346726487,1735248649405,-1419.56,0.00017214,2]
[346726488,1735248649415,-1277.43,0.00017214,2]
[346726489,1735248649424,-500.0,0.00017214,2]
[346726490,1735248649433,-500.0,0.00017214,2]
[346726491,1735248649443,-500.0,0.00017214,2]
[346726492,1735248649453,-500.0,0.00017214,2]
[346726493,1735248649462,-500.0,0.00017214,2]
[346726494,1735248649472,-500.0,0.00017214,2]
[346726495,1735248649482,-500.0,0.00017214,2]
[346726496,1735248649491,-500.0,0.00017214,2]
[346726497,1735248649500,-1831.22,0.00017214,2]
[346726498,1735248649509,-500.0,0.00017214,2]
[346726499,1735248649518,-3007.75,0.00017214,2]
[346726500,1735248649527,-500.0,0.00017214,2]
[346726501,1735248649537,-500.0,0.00017214,2]
[346726502,1735248649546,-500.0,0.00017214,2]
[346726503,1735248649556,-500.0,0.00017214,2]
[346726504,1735248649565,-500.0,0.00017214,2]
[346726505,1735248649574,-500.0,0.00017214,2]
[346726506,1735248649583,-662.15,0.00017214,2]
[346726507,1735248649592,-500.0,0.00017214,2]
[346726508,1735248649601,-500.0,0.00017214,2]
[346726509,1735248649611,-1586.44,0.00017214,2]
[346726510,1735248649619,-500.0,0.00017214,2]
[346726511,1735248649628,-1626.47,0.00017214,2]
[346726512,1735248649638,-500.0,0.00017214,2]
[346726513,1735248649646,-1545.44,0.00017214,2]
[346726514,1735248649655,-500.0,0.00017214,2]
[346726515,1735248649664,-1357.21,0.00017214,2]
[346726516,1735248649674,-500.0,0.00017214,2]
[346726517,1735248649684,-862.7,0.00017214,2]
[346726518,1735248649694,-1143.93,0.00017214,2]
[346726519,1735248649703,-500.0,0.00017214,2]
[346726520,1735248649712,-1077.27,0.00017214,2]
[346726521,1735248649721,-500.0,0.00017214,2]
[346726522,1735248649732,-500.0,0.00017214,2]
[346726523,1735248649747,-500.0,0.00017214,2]
[346726524,1735248649756,-1077.82,0.00017214,2]
[346726525,1735248649766,-439.0,0.0001723,2]
[346726526,1735248649775,-1316632.91580839,0.00017233,2]
[346726527,1735248649994,-531.784676,0.00017233,2]
[346726528,1735248650012,-1070.06,0.00017212,2]
[346726529,1735248650021,-1348.45838696,0.00017233,2]
[346726530,1735248762601,2000.0,0.00020588,30]
[346726531,1735248762954,1999.9,0.00020588,30]
[346726532,1735248869479,500.0,0.00020601,120]
[346726536,1735249538102,-200.0,0.00013425,2]
[346726537,1735249538130,-200.0,0.00013561,2]
[346726538,1735249538158,-3119.3283671,0.00013698,2]
[346726539,1735249626534,-3637.2056742,0.00013698,2]
[346726540,1735249626555,-400.0,0.00013973,2]
[346726541,1735249626575,-211.74112771,0.00015597,2]
[346726542,1735249626595,-336.070449,0.00015665,2]
[346726543,1735249626614,-300.0,0.00015697,2]
[346726544,1735249626636,-300.0,0.00015697,2]
[346726545,1735249626657,-80.45391978,0.00015698,2]
[346726546,1735249640099,-2380.90195064,0.000136,2]
[346726547,1735249645120,-1439.8454574,0.000136,2]
[346726548,1735249652133,-461.92532513,0.000136,2]
[346726549,1735249652154,-6676.08012152,0.00015698,2]
[346726550,1735249652176,-556.442,0.0001637,2]
[346726551,1735249652197,-229.54857521,0.0001656,2]
[346726552,1735249652218,-915.69118604,0.00016566,2]
[346726553,1735249652242,-152.0,0.00016608,2]
[346726554,1735249652264,-540.88,0.00016659,2]
[346726555,1735249652289,-500.0,0.00016659,2]
[346726556,1735249652311,-500.0,0.00016659,2]
[346726557,1735249652333,-500.0,0.00016659,2]
[346726558,1735249652354,-286.91646307,0.00016659,2]
[346726559,1735249652374,-500.0,0.00016659,2]
[346726560,1735249652398,-906.34249028,0.00016659,2]
[346726561,1735249731341,-168.035224,0.00015663,2]
[346726562,1735249731367,-300.0,0.00016658,2]
[346726563,1735249731392,-300.0,0.00016658,2]
[346726564,1735249731419,-535.45117008,0.00016658,2]
[346726607,1735249832211,-3.72882992,0.00016658,2]
[346726610,1735249832227,-500.0,0.00016658,2]
[346726612,1735249832240,-500.0,0.00016658,2]
[346726615,1735249832253,-300.0,0.00016658,2]
[346726617,1735249832266,-3581.54,0.00016658,2]
[346726620,1735249832278,-732.55294884,0.00016658,2]
[346726622,1735249832291,-661.37,0.00016658,2]
[346726624,1735249832305,-500.0,0.00016658,2]
[346726627,1735249832317,-574.29906948,0.00016659,2]
[346726630,1735249832329,-500.0,0.00016659,2]
[346726632,1735249832341,-466.06006947,0.00016659,2]
[346726635,1735249832357,-33.93993053,0.00016659,2]
[346726637,1735249832369,-1488.65,0.00016659,2]
[346726639,1735249832382,-500.0,0.00016659,2]
[346726642,1735249832395,-500.0,0.00016659,2]
[346726644,1735249832407,-588.11390716,0.00016659,2]
[346726724,1735249838351,-500.0,0.00016658,2]
[346726725,1735249838360,-55.255,0.00016658,2]
[346726726,1735249838372,-435.25986524,0.00016658,2]
[346726727,1735249838381,-500.0,0.00016658,2]
[346726728,1735249838391,-500.0,0.00016658,2]
[346726729,1735249838401,-500.0,0.00016658,2]
[346726730,1735249838410,-500.0,0.00016658,2]
[346726731,1735249838422,-500.0,0.00016658,2]
[346726732,1735249838432,-500.0,0.00016658,2]
[346726733,1735249838442,-648.02686663,0.00016658,2]
[346726734,1735249838451,-500.0,0.00016658,2]
[346726735,1735249838462,-500.0,0.00016658,2]
[346726736,1735249838471,-500.0,0.00016658,2]
[346726737,1735249838480,-500.0,0.00016658,2]
[346726738,1735249838489,-500.0,0.00016658,2]
[346726739,1735249838500,-500.0,0.00016658,2]
[346726740,1735249838510,-500.0,0.00016658,2]
[346726741,1735249838531,-269.40450813,0.00016658,2]
[346726742,1735249838541,-500.0,0.00016658,2]
[346726743,1735249838551,-500.0,0.00016658,2]
[346726744,1735249838561,-500.0,0.00016658,2]
[346726745,1735249838571,-500.0,0.00016658,2]
[346726746,1735249838580,-488.30876,0.00016658,2]
[346726748,1735249838595,-11.69124,0.00016658,2]
[346726749,1735249838605,-61.59609284,0.00016659,2]
[346726750,1735249838615,-235.3777618,0.00016659,2]
[346726751,1735249838627,-264.6222382,0.00016659,2]
[346726752,1735249838638,-500.0,0.00016659,2]
[346726753,1735249838649,-500.0,0.00016659,2]
[346726754,1735249838658,-556.18725913,0.00016659,2]
[346726755,1735249838668,-500.0,0.00016659,2]
[346726756,1735249838678,-3500.74383899,0.00016659,2]
[346726761,1735249840314,-500.0,0.00016658,2]
[346726762,1735249840325,-82.04603108,0.00016659,2]
[346726763,1735249840337,-2551.15956279,0.00016659,2]
[346726764,1735249840349,-6354.72604147,0.00016659,2]
[346726765,1735249840460,-264.54466118,0.00016659,2]
[346726783,1735249843266,-391.03648523,0.00016658,2]
[346726784,1735249843277,-1035.59351477,0.00016658,2]
[346726785,1735249843287,-1108.86986449,0.00016659,2]
[346726786,1735249843296,-500.0,0.00016659,2]
[346726787,1735249843305,-504.69397731,0.00016659,2]
[346726788,1735249843314,-500.0,0.00016659,2]
[346726789,1735249843323,-6001.0,0.00016659,2]
[346726790,1735249843332,-500.0,0.00016659,2]
[346726791,1735249843342,-500.0,0.00016659,2]
[346726792,1735249843351,-500.0,0.00016659,2]
[346726793,1735249843360,-500.0,0.00016659,2]
[346726794,1735249843369,-500.0,0.00016659,2]
[346726795,1735249843403,-889.71,0.0001666,2]
[346726796,1735249843413,-500.0,0.0001666,2]
[346726797,1735249843423,-500.0,0.0001666,2]
[346726798,1735249843434,-500.0,0.0001666,2]
[346726799,1735249843447,-500.0,0.0001666,2]
[346726800,1735249843457,-500.0,0.0001666,2]
[346726801,1735249843466,-1032.39,0.0001666,2]
[346726802,1735249843478,-500.0,0.0001666,2]
[346726803,1735249843488,-500.0,0.0001666,2]
[346726804,1735249843498,-1271.83,0.0001666,2]
[346726805,1735249843507,-168.0,0.0001666,2]
[346726806,1735249843517,-500.0,0.0001666,2]
[346726807,1735249843526,-1351.38,0.0001666,2]
[346726808,1735249843536,-506.22,0.0001666,2]
[346726809,1735249843545,-691.96,0.0001666,2]
[346726810,1735249843554,-2428.17,0.0001666,2]
[346726811,1735249843563,-500.0,0.0001666,2]
[346726812,1735249843573,-1242.11,0.0001666,2]
[346726813,1735249843582,-500.0,0.0001666,2]
[346726814,1735249843592,-500.0,0.0001666,2]
[346726815,1735249843600,-584.02,0.0001666,2]
[346726816,1735249843610,-1437.84,0.0001666,2]
[346726817,1735249843619,-500.0,0.0001666,2]
[346726818,1735249843628,-500.0,0.0001666,2]
[346726819,1735249843639,-500.0,0.0001666,2]
[346726820,1735249843648,-500.0,0.0001666,2]
[346726821,1735249843657,-620.65,0.0001666,2]
[346726822,1735249843667,-2166.84,0.0001666,2]
[346726823,1735249843676,-3631.34,0.0001666,2]
[346726824,1735249843686,-514.77,0.0001666,2]
[346726825,1735249843695,-500.0,0.0001666,2]
[346726826,1735249843704,-500.0,0.0001666,2]
[346726827,1735249843713,-500.0,0.0001666,2]
[346726828,1735249843723,-500.0,0.0001666,2]
[346726829,1735249843732,-500.0,0.0001666,2]
[346726830,1735249843742,-500.0,0.0001666,2]
[346726831,1735249843752,-2000.37,0.0001666,2]
[346726832,1735249843761,-335.45204202,0.0001666,2]
[346726833,1735249843771,-894.56,0.0001666,2]
[346726834,1735249843780,-2060.01,0.0001666,2]
[346726835,1735249843790,-1311.7,0.0001666,2]
[346726836,1735249843799,-1383.78,0.0001666,2]
[346726837,1735249843809,-1995.74,0.0001666,2]
[346726838,1735249843818,-1699.51,0.0001666,2]
[346726839,1735249843827,-500.0,0.0001666,2]
[346726840,1735249843837,-500.0,0.0001666,2]
[346726841,1735249843847,-500.0,0.0001666,2]
[346726842,1735249843856,-500.0,0.0001666,2]
[346726843,1735249843866,-1075.65,0.0001666,2]
[346726844,1735249843875,-500.0,0.0001666,2]
[346726845,1735249843885,-500.0,0.0001666,2]
[346726846,1735249843894,-500.0,0.0001666,2]
[346726847,1735249843904,-206.36462835,0.0001666,2]
[346726848,1735249843913,-500.0,0.0001666,2]
[346726849,1735249843923,-406.32793676,0.0001666,2]
[346726850,1735249843932,-500.0,0.0001666,2]
[346726851,1735249843941,-500.0,0.00016661,2]
[346726852,1735249843951,-1124.09,0.00016661,2]
[346726853,1735249843960,-1559.98,0.00016661,2]
[346726854,1735249843970,-500.0,0.00016661,2]
[346726855,1735249843979,-915.83,0.00016661,2]
[346726856,1735249843988,-560.27,0.00016661,2]
[346726857,1735249843998,-500.0,0.00016661,2]
[346726858,1735249844008,-500.0,0.00016661,2]
[346726859,1735249844017,-46428.12,0.00016661,2]
[346726860,1735249844027,-1006.48,0.00016661,2]
[346726861,1735249844036,-500.0,0.00016661,2]
[346726862,1735249844046,-500.0,0.00016662,2]
[346726863,1735249844055,-523.1,0.00016662,2]
[346726864,1735249844065,-500.0,0.00016662,2]
[346726865,1735249844074,-500.0,0.00016662,2]
[346726866,1735249844084,-500.0,0.00016662,2]
[346726867,1735249844093,-500.0,0.00016662,2]
[346726868,1735249844103,-500.0,0.00016662,2]
[346726869,1735249844112,-500.0,0.00016662,2]
[346726870,1735249844121,-500.0,0.00016662,2]
[346726871,1735249844131,-850.71,0.00016662,2]
[346726872,1735249844140,-500.0,0.00016662,2]
[346726873,1735249844149,-500.0,0.00016662,2]
[346726874,1735249844159,-500.0,0.00016662,2]
[346726875,1735249844169,-500.0,0.00016662,2]
[346726876,1735249844178,-500.0,0.00016662,2]
[346726877,1735249844188,-500.0,0.00016662,2]
[346726878,1735249844197,-500.0,0.00016662,2]
[346726879,1735249844207,-500.0,0.00016662,2]
[346726880,1735249844216,-500.0,0.00016662,2]
[346726881,1735249844226,-500.0,0.00016662,2]
[346726882,1735249844235,-500.0,0.00016662,2]
[346726883,1735249844245,-500.0,0.00016662,2]
[346726884,1735249844254,-500.0,0.00016662,2]
[346726885,1735249844264,-500.0,0.00016662,2]
[346726886,1735249844273,-500.0,0.00016662,2]
[346726887,1735249844283,-500.0,0.00016662,2]
[346726888,1735249844292,-617.9,0.00016662,2]
[346726889,1735249844301,-500.0,0.00016662,2]
[346726890,1735249844311,-500.0,0.00016662,2]
[346726891,1735249844320,-1682.95,0.00016662,2]
[346726892,1735249844330,-500.0,0.00016662,2]
[346726893,1735249844339,-500.0,0.00016662,2]
[346726894,1735249844349,-500.0,0.00016662,2]
[346726895,1735249844358,-544.71915857,0.00016662,2]
[346726896,1735249844367,-500.0,0.00016662,2]
[346726897,1735249844377,-500.0,0.00016662,2]
[346726898,1735249844388,-500.0,0.00016662,2]
[346726899,1735249844398,-181.81290131,0.00016662,2]
[346726900,1735249844407,-1098.15,0.00016662,2]
[346726901,1735249844416,-1692.65,0.00016662,2]
[346726902,1735249844429,-937.86,0.00016662,2]
[346726903,1735249844439,-751.71,0.00016662,2]
[346726904,1735249844448,-500.0,0.00016662,2]
[346726905,1735249844458,-546.69901243,0.00016662,2]
[346726906,1735249844469,-500.0,0.00016662,2]
[346726907,1735249844479,-500.0,0.00016662,2]
[346726908,1735249844488,-500.0,0.00016662,2]
[346726909,1735249844497,-500.0,0.00016662,2]
[346726910,1735249844507,-500.0,0.00016662,2]
[346726911,1735249844516,-500.0,0.00016662,2]
[346726912,1735249844525,-500.0,0.00016662,2]
[346726913,1735249844534,-500.0,0.00016662,2]
[346726914,1735249844544,-677.71,0.00016662,2]
[346726915,1735249844553,-500.0,0.00016662,2]
[346726916,1735249844562,-500.0,0.00016662,2]
[346726917,1735249844571,-500.0,0.00016663,2]
[346726918,1735249844580,-500.0,0.00016663,2]
[346726919,1735249844590,-580.42098436,0.00016663,2]
[346726920,1735249844600,-500.0,0.00016663,2]
[346726921,1735249844609,-500.0,0.00016663,2]
[346726922,1735249844619,-500.0,0.00016663,2]
[346726923,1735249844714,-500.0,0.00016663,2]
[346726924,1735249844724,-500.0,0.00016663,2]
[346726925,1735249844734,-500.0,0.00016663,2]
[346726926,1735249844743,-500.0,0.00016663,2]
[346726927,1735249844753,-552.32105813,0.00016663,2]
[346726928,1735249844762,-500.0,0.00016663,2]
[346726929,1735249844771,-500.0,0.00016663,2]
[346726930,1735249844782,-500.0,0.00016663,2]
[346726931,1735249844792,-500.0,0.00016663,2]
[346726932,1735249844801,-638.67,0.00016663,2]
[346726933,1735249844810,-500.0,0.00016663,2]
[346726934,1735249844820,-500.0,0.00016663,2]
[346726935,1735249844829,-559.44,0.00016663,2]
[346726936,1735249844838,-500.0,0.00016663,2]
[346726937,1735249844848,-500.0,0.00016663,2]
[346726938,1735249844858,-500.0,0.00016663,2]
[346726939,1735249844867,-500.0,0.00016663,2]
[346726940,1735249844876,-500.0,0.00016663,2]
[346726941,1735249844886,-500.0,0.00016663,2]
[346726942,1735249844896,-500.0,0.00016663,2]
[346726943,1735249844905,-150.14290225,0.00016663,2]
[346726944,1735249844914,-500.0,0.00016663,2]
[346726945,1735249844923,-240.4097196,0.00016663,2]
[346726946,1735249844933,-500.0,0.00016663,2]
[346726947,1735249844941,-500.0,0.00016663,2]
[346726948,1735249844953,-648.55,0.00016663,2]
[346726949,1735249844968,-500.0,0.00016663,2]
[346726950,1735249844978,-500.0,0.00016664,2]
[346726951,1735249844987,-5620.77,0.00016664,2]
[346726952,1735249844996,-500.0,0.00016664,2]
[346726953,1735249845006,-1968.42,0.00016664,2]
[346726954,1735249845015,-558.78,0.00016664,2]
[346726955,1735249845024,-500.0,0.00016664,2]
[346726956,1735249845034,-500.0,0.00016664,2]
[346726957,1735249845043,-500.0,0.00016665,2]
[346726958,1735249845052,-1456.39,0.00016665,2]
[346726959,1735249845061,-500.0,0.00016665,2]
[346726960,1735249845071,-500.0,0.00016665,2]
[346726961,1735249845080,-500.0,0.00016666,2]
[346726962,1735249845090,-500.0,0.00016666,2]
[346726963,1735249845101,-500.0,0.00016666,2]
[346726964,1735249845111,-500.0,0.00016666,2]
[346726965,1735249845120,-2083.88,0.00016666,2]
[346726966,1735249845130,-500.0,0.00016666,2]
[346726967,1735249845142,-1007.75,0.00016666,2]
[346726968,1735249845153,-500.0,0.00016666,2]
[346726969,1735249845164,-500.0,0.00016666,2]
[346726970,1735249845174,-500.0,0.00016666,2]
[346726971,1735249845185,-500.0,0.00016666,2]
[346726972,1735249845195,-500.0,0.00016666,2]
[346726973,1735249845206,-500.0,0.00016666,2]
[346726974,1735249845216,-500.0,0.00016666,2]
[346726975,1735249845225,-500.0,0.00016666,2]
[346726976,1735249845234,-500.0,0.00016666,2]
[346726977,1735249845243,-500.0,0.00016666,2]
[346726978,1735249845253,-500.0,0.00016666,2]
[346726979,1735249845262,-516.13,0.00016666,2]
[346726980,1735249845273,-500.0,0.00016666,2]
[346726981,1735249845282,-569.39,0.00016666,2]
[346726982,1735249845292,-1230.85460595,0.00016666,2]
[346726983,1735249845302,-500.0,0.00016758,2]
[346726984,1735249845312,-533.08,0.00016758,2]
[346726985,1735249845321,-500.0,0.00016758,2]
[346726986,1735249845331,-500.0,0.00016758,2]
[346726987,1735249845340,-500.0,0.00016758,2]
[346726988,1735249845349,-500.0,0.00016758,2]
[346726989,1735249845358,-500.0,0.00016758,2]
[346726990,1735249845368,-500.0,0.00016758,2]
[346726991,1735249845378,-500.0,0.00016758,2]
[346726992,1735249845388,-500.0,0.00016758,2]
[346726993,1735249845398,-500.0,0.00016758,2]
[346726994,1735249845408,-500.0,0.0001676,2]
[346726995,1735249845417,-500.0,0.0001676,2]
[346726996,1735249845430,-500.0,0.0001676,2]
[346726997,1735249845440,-500.0,0.00016762,2]
[346726998,1735249845449,-500.0,0.00016762,2]
[346726999,1735249845459,-1732.67,0.00016762,2]
[346727000,1735249845469,-500.0,0.00016762,2]
[346727001,1735249845479,-513.42,0.00016762,2]
[346727002,1735249845488,-13695.59,0.00016762,2]
[346727003,1735249845498,-9731.3,0.00016766,2]
[346727004,1735249845507,-732.55294881,0.00016839,2]
[346727005,1735249845517,-265.424,0.00016893,2]
[346727006,1735249845526,-539.18,0.00016932,2]
[346727007,1735249845535,-500.0,0.00016932,2]
[346727008,1735249845545,-3581.54,0.00016932,2]
[346727009,1735249845553,-661.37,0.00016932,2]
[346727010,1735249845563,-500.0,0.00016932,2]
[346727011,1735249845572,-500.0,0.00016932,2]
[346727012,1735249845581,-1426.63,0.00016932,2]
[346727013,1735249845591,-500.0,0.00016933,2]
[346727014,1735249845600,-500.0,0.00016933,2]
[346727015,1735249845609,-500.0,0.00016933,2]
[346727016,1735249845618,-500.0,0.00016933,2]
[346727017,1735249845627,-500.0,0.00016933,2]
[346727018,1735249845638,-500.0,0.00016933,2]
[346727019,1735249845647,-649.71,0.00016933,2]
[346727020,1735249845656,-500.0,0.00016933,2]
[346727022,1735249845666,-500.0,0.00016933,2]
[346727024,1735249845674,-500.0,0.00016933,2]
[346727026,1735249845684,-500.0,0.00016933,2]
[346727028,1735249845693,-13862.09,0.00016933,2]
[346727030,1735249845702,-500.0,0.00016933,2]
[346727032,1735249845711,-500.0,0.00016933,2]
[346727034,1735249845720,-6001.0,0.00016933,2]
[346727035,1735249845729,-500.0,0.00016933,2]
[346727036,1735249845738,-500.0,0.00016933,2]
[346727037,1735249845747,-500.0,0.00016933,2]
[346727039,1735249845759,-500.0,0.00016933,2]
[346727040,1735249845768,-500.0,0.00016933,2]
[346727041,1735249845779,-889.71,0.00016934,2]
[346727042,1735249845788,-500.0,0.00016934,2]
[346727043,1735249845800,-500.0,0.00016934,2]
[346727044,1735249845809,-500.0,0.00016934,2]
[346727045,1735249845819,-500.0,0.00016934,2]
[346727046,1735249845829,-500.0,0.00016934,2]
[346727047,1735249845838,-1032.39,0.00016934,2]
[346727048,1735249845848,-500.0,0.00016934,2]
[346727049,1735249845858,-500.0,0.00016934,2]
[346727050,1735249845867,-1271.83,0.00016934,2]
[346727051,1735249845877,-168.0,0.00016934,2]
[346727052,1735249845887,-500.0,0.00016934,2]
[346727053,1735249845896,-1351.38,0.00016934,2]
[346727054,1735249845905,-506.22,0.00016934,2]
[346727055,1735249845915,-691.96,0.00016934,2]
[346727056,1735249845924,-2428.17,0.00016934,2]
[346727057,1735249845935,-500.0,0.00016934,2]
[346727058,1735249845945,-1242.11,0.00016934,2]
[346727059,1735249845956,-500.0,0.00016934,2]
[346727060,1735249845966,-500.0,0.00016934,2]
[346727061,1735249845976,-584.02,0.00016934,2]
[346727062,1735249845986,-1437.84,0.00016934,2]
[346727063,1735249845995,-500.0,0.00016934,2]
[346727064,1735249846004,-500.0,0.00016934,2]
[346727065,1735249846016,-500.0,0.00016934,2]
[346727066,1735249846025,-500.0,0.00016934,2]
[346727067,1735249846034,-620.65,0.00016934,2]
[346727068,1735249846044,-2166.84,0.00016934,2]
[346727069,1735249846053,-3631.34,0.00016934,2]
[346727070,1735249846064,-514.77,0.00016934,2]
[346727071,1735249846074,-500.0,0.00016934,2]
[346727072,1735249846083,-500.0,0.00016934,2]
[346727074,1735249846093,-500.0,0.00016934,2]
[346727075,1735249846102,-500.0,0.00016934,2]
[346727077,1735249846112,-500.0,0.00016934,2]
[346727079,1735249846121,-500.0,0.00016934,2]
[346727081,1735249846131,-2000.37,0.00016934,2]
[346727082,1735249846141,-894.56,0.00016934,2]
[346727083,1735249846151,-2060.01,0.00016934,2]
[346727085,1735249846160,-1311.7,0.00016934,2]
[346727086,1735249846170,-1383.78,0.00016934,2]
[346727087,1735249846180,-1995.74,0.00016934,2]
[346727088,1735249846189,-1699.51,0.00016934,2]
[346727089,1735249846198,-500.0,0.00016934,2]
[346727090,1735249846208,-500.0,0.00016934,2]
[346727091,1735249846218,-500.0,0.00016934,2]
[346727092,1735249846227,-500.0,0.00016934,2]
[346727093,1735249846237,-1075.65,0.00016934,2]
[346727094,1735249846246,-500.0,0.00016934,2]
[346727095,1735249846255,-500.0,0.00016934,2]
[346727096,1735249846265,-500.0,0.00016934,2]
[346727097,1735249846274,-500.0,0.00016935,2]
[346727098,1735249846285,-1124.09,0.00016935,2]
[346727099,1735249846294,-1559.98,0.00016935,2]
[346727100,1735249846303,-500.0,0.00016935,2]
[346727101,1735249846312,-915.83,0.00016935,2]
[346727102,1735249846322,-560.27,0.00016935,2]
[346727103,1735249846331,-500.0,0.00016935,2]
[346727104,1735249846341,-500.0,0.00016935,2]
[346727105,1735249846351,-46428.12,0.00016935,2]
[346727106,1735249846361,-1006.48,0.00016935,2]
[346727107,1735249846371,-500.0,0.00016935,2]
[346727108,1735249846380,-500.0,0.00016936,2]
[346727109,1735249846389,-523.1,0.00016936,2]
[346727110,1735249846399,-500.0,0.00016936,2]
[346727111,1735249846408,-500.0,0.00016936,2]
[346727112,1735249846497,-500.0,0.00016936,2]
[346727113,1735249846508,-500.0,0.00016936,2]
[346727114,1735249846518,-500.0,0.00016936,2]
[346727115,1735249846527,-500.0,0.00016936,2]
[346727116,1735249846537,-500.0,0.00016936,2]
[346727117,1735249846546,-850.71,0.00016936,2]
[346727118,1735249846555,-500.0,0.00016936,2]
[346727119,1735249846564,-500.0,0.00016936,2]
[346727120,1735249846573,-500.0,0.00016936,2]
[346727121,1735249846583,-500.0,0.00016936,2]
[346727122,1735249846591,-500.0,0.00016936,2]
[346727123,1735249846601,-500.0,0.00016936,2]